{"text_format":"2","workbook":"xlsx","n_sheets":2,"sheets":["Work From Home Records","List"],"not_rendered":{"charts":0,"images":1,"macros":0,"external_links":0,"defined_names":1,"comments":1,"pivot_tables":0},"unopened":[],"bounds":{"document_bytes":16777216,"sheet_cells":100000,"run_cost":"one","rows_first":2000,"rows_last":500,"rows_between":2000,"halvings":0,"cell_chars":16384,"cell_head_chars":4096},"cells_cut":0,"cells_raw":0,"read":"whole","date_system":"1900"}

{"sheet":"Work From Home Records","index":0,"n_rows":1007,"n_cols":12,"rows_kept":1007,"cut":false,"hidden":false,"merged":[[14,1,14,2],[7,1,7,2],[8,1,8,2],[14,4,14,5],[14,7,15,7],[14,8,15,8],[14,10,15,10],[14,11,15,11],[14,9,15,9],[1,0,1,11],[2,0,2,11],[4,0,4,11],[3,0,3,11],[5,10,5,11]]}
[]
["13-000-RBIZZ"]
["team@rbizz.com.au"]
["WORKING FROM HOME TIMESHEETS"]
["IMPORTANT : Lunch break time should be excluded from work hours."]
[{"$nulls":10},"SUMMARY"]
[{"$nulls":10},"Total Hours",{"$f":"SUM(K17:K2005)+SUM(L17:L2005)+SUM(J17:J2005)","v":0}]
["03:00:00","Type as 3:00 (space) am or 3:00",{"$nulls":8},"Work Hours",{"$f":"SUM(J17:J2005)","v":0}]
["15:00:00","Type as 3:00 (space) pm or 15:00",{"$nulls":4},"Name",null,null,null,"Business Hours",{"$f":"SUM(K17:K2005)","v":0}]
["Check Finish","It means your finish time lower than start time",{"$nulls":4},"Year",null,null,null,"Personal Hours",{"$f":"SUM(L17:L2005)","v":0}]
[{"$nulls":10},"Work-related %",{"$f":"L8/L7","v":{"$error":"#DIV/0!"}}]
[{"$nulls":10},"Business-related %",{"$f":"+L9/L7","v":{"$error":"#DIV/0!"}}]
[{"$nulls":10},"Personal %",{"$f":"L10/L7","v":{"$error":"#DIV/0!"}}]
[]
[null,"Before Lunch",null,null,"After Lunch",null,null,"Work description","Work / Business / Personal","Work Hours","Business Hours","Personal Hours"]
["Date","Start Time","Finish Time","Check","Start Time","Finish Time","Check"]
[null,null,null,{"$f":"IF(C17<B17,\"Check Finish\",\"\")","v":""},null,null,{"$f":"IF(F17<E17,\"Check Finish\",\"\")","v":""},null,null,{"$f":"IF(I17=\"Work\",((F17-E17)*24+(C17-B17)*24),0)","v":0},{"$f":"IF(I17=\"Business\",((F17-E17)*24+(C17-B17)*24),0)","v":0},{"$f":"IF(I17=\"Personal\",((F17-E17)*24+(C17-B17)*24),0)","v":0}]
[null,null,null,{"$f":"IF(C18<B18,\"Check Finish\",\"\")","v":""},null,null,{"$f":"IF(F18<E18,\"Check Finish\",\"\")","v":""},null,null,{"$f":"IF(I18=\"Work\",((F18-E18)*24+(C18-B18)*24),0)","v":0},{"$f":"IF(I18=\"Business\",((F18-E18)*24+(C18-B18)*24),0)","v":0},{"$f":"IF(I18=\"Personal\",((F18-E18)*24+(C18-B18)*24),0)","v":0}]
[null,null,null,"",null,null,"",null,null,0,0,0]
[null,null,null,"",null,null,"",null,null,0,0,0]
[null,null,null,"",null,null,"",null,null,0,0,0]
[null,null,null,"",null,null,"",null,null,0,0,0]
[null,null,null,"",null,null,"",null,null,0,0,0]
[null,null,null,"",null,null,"",null,null,0,0,0]
[null,null,null,"",null,null,"",null,null,0,0,0]
[null,null,null,"",null,null,"",null,null,0,0,0]
[null,null,null,"",null,null,"",null,null,0,0,0]
[null,null,null,"",null,null,"",null,null,0,0,0]
[null,null,null,"",null,null,"",null,null,0,0,0]
[null,null,null,"",null,null,"",null,null,0,0,0]
[null,null,null,"",null,null,"",null,null,0,0,0]
[null,null,null,"",null,null,"",null,null,0,0,0]
[null,null,null,"",null,null,"",null,null,0,0,0]
[null,null,null,"",null,null,"",null,null,0,0,0]
[null,null,null,"",null,null,"",null,null,0,0,0]
[null,null,null,"",null,null,"",null,null,0,0,0]
[null,null,null,"",null,null,"",null,null,0,0,0]
[null,null,null,"",null,null,"",null,null,0,0,0]
[null,null,null,"",null,null,"",null,null,0,0,0]
[null,null,null,"",null,null,"",null,null,0,0,0]
[null,null,null,"",null,null,"",null,null,0,0,0]
[null,null,null,"",null,null,"",null,null,0,0,0]
[null,null,null,"",null,null,"",null,null,0,0,0]
[null,null,null,"",null,null,"",null,null,0,0,0]
[null,null,null,"",null,null,"",null,null,0,0,0]
[null,null,null,"",null,null,"",null,null,0,0,0]
[null,null,null,"",null,null,"",null,null,0,0,0]
[null,null,null,"",null,null,"",null,null,0,0,0]
[null,null,null,"",null,null,"",null,null,0,0,0]
[null,null,null,"",null,null,"",null,null,0,0,0]
[null,null,null,"",null,null,"",null,null,0,0,0]
[null,null,null,"",null,null,"",null,null,0,0,0]
[null,null,null,"",null,null,"",null,null,0,0,0]
[null,null,null,"",null,null,"",null,null,0,0,0]
[null,null,null,"",null,null,"",null,null,0,0,0]
[null,null,null,"",null,null,"",null,null,0,0,0]
[null,null,null,"",null,null,"",null,null,0,0,0]
[null,null,null,"",null,null,"",null,null,0,0,0]
[null,null,null,"",null,null,"",null,null,0,0,0]
[null,null,null,"",null,null,"",null,null,0,0,0]
[null,null,null,"",null,null,"",null,null,0,0,0]
[null,null,null,"",null,null,"",null,null,0,0,0]
[null,null,null,"",null,null,"",null,null,0,0,0]
[null,null,null,"",null,null,"",null,null,0,0,0]
[null,null,null,"",null,null,"",null,null,0,0,0]
[null,null,null,"",null,null,"",null,null,0,0,0]
[null,null,null,"",null,null,"",null,null,0,0,0]
[null,null,null,"",null,null,"",null,null,0,0,0]
[null,null,null,"",null,null,"",null,null,0,0,0]
[null,null,null,"",null,null,"",null,null,0,0,0]
[null,null,null,"",null,null,"",null,null,0,0,0]
[null,null,null,"",null,null,"",null,null,0,0,0]
[null,null,null,"",null,null,"",null,null,0,0,0]
[null,null,null,"",null,null,"",null,null,0,0,0]
[null,null,null,"",null,null,"",null,null,0,0,0]
[null,null,null,"",null,null,"",null,null,0,0,0]
[null,null,null,"",null,null,"",null,null,0,0,0]
[null,null,null,"",null,null,"",null,null,0,0,0]
[null,null,null,"",null,null,"",null,null,0,0,0]
[null,null,null,"",null,null,"",null,null,0,0,0]
[null,null,null,"",null,null,"",null,null,0,0,0]
[null,null,null,{"$f":"IF(C82<B82,\"Check Finish\",\"\")","v":""},null,null,{"$f":"IF(F82<E82,\"Check Finish\",\"\")","v":""},null,null,{"$f":"IF(I82=\"Work\",((F82-E82)*24+(C82-B82)*24),0)","v":0},{"$f":"IF(I82=\"Business\",((F82-E82)*24+(C82-B82)*24),0)","v":0},{"$f":"IF(I82=\"Personal\",((F82-E82)*24+(C82-B82)*24),0)","v":0}]
[null,null,null,"",null,null,"",null,null,0,0,0]
[null,null,null,"",null,null,"",null,null,0,0,0]
[null,null,null,"",null,null,"",null,null,0,0,0]
[null,null,null,"",null,null,"",null,null,0,0,0]
[null,null,null,"",null,null,"",null,null,0,0,0]
[null,null,null,"",null,null,"",null,null,0,0,0]
[null,null,null,"",null,null,"",null,null,0,0,0]
[null,null,null,"",null,null,"",null,null,0,0,0]
[null,null,null,"",null,null,"",null,null,0,0,0]
[null,null,null,"",null,null,"",null,null,0,0,0]
[null,null,null,"",null,null,"",null,null,0,0,0]
[null,null,null,"",null,null,"",null,null,0,0,0]
[null,null,null,"",null,null,"",null,null,0,0,0]
[null,null,null,"",null,null,"",null,null,0,0,0]
[null,null,null,"",null,null,"",null,null,0,0,0]
[null,null,null,"",null,null,"",null,null,0,0,0]
[null,null,null,"",null,null,"",null,null,0,0,0]
[null,null,null,"",null,null,"",null,null,0,0,0]
[null,null,null,"",null,null,"",null,null,0,0,0]
[null,null,null,"",null,null,"",null,null,0,0,0]
[null,null,null,"",null,null,"",null,null,0,0,0]
[null,null,null,"",null,null,"",null,null,0,0,0]
[null,null,null,"",null,null,"",null,null,0,0,0]
[null,null,null,"",null,null,"",null,null,0,0,0]
[null,null,null,"",null,null,"",null,null,0,0,0]
[null,null,null,"",null,null,"",null,null,0,0,0]
[null,null,null,"",null,null,"",null,null,0,0,0]
[null,null,null,"",null,null,"",null,null,0,0,0]
[null,null,null,"",null,null,"",null,null,0,0,0]
[null,null,null,"",null,null,"",null,null,0,0,0]
[null,null,null,"",null,null,"",null,null,0,0,0]
[null,null,null,"",null,null,"",null,null,0,0,0]
[null,null,null,"",null,null,"",null,null,0,0,0]
[null,null,null,"",null,null,"",null,null,0,0,0]
[null,null,null,"",null,null,"",null,null,0,0,0]
[null,null,null,"",null,null,"",null,null,0,0,0]
[null,null,null,"",null,null,"",null,null,0,0,0]
[null,null,null,"",null,null,"",null,null,0,0,0]
[null,null,null,"",null,null,"",null,null,0,0,0]
[null,null,null,"",null,null,"",null,null,0,0,0]
[null,null,null,"",null,null,"",null,null,0,0,0]
[null,null,null,"",null,null,"",null,null,0,0,0]
[null,null,null,"",null,null,"",null,null,0,0,0]
[null,null,null,"",null,null,"",null,null,0,0,0]
[null,null,null,"",null,null,"",null,null,0,0,0]
[null,null,null,"",null,null,"",null,null,0,0,0]
[null,null,null,"",null,null,"",null,null,0,0,0]
[null,null,null,"",null,null,"",null,null,0,0,0]
[null,null,null,"",null,null,"",null,null,0,0,0]
[null,null,null,"",null,null,"",null,null,0,0,0]
[null,null,null,"",null,null,"",null,null,0,0,0]
[null,null,null,"",null,null,"",null,null,0,0,0]
[null,null,null,"",null,null,"",null,null,0,0,0]
[null,null,null,"",null,null,"",null,null,0,0,0]
[null,null,null,"",null,null,"",null,null,0,0,0]
[null,null,null,"",null,null,"",null,null,0,0,0]
[null,null,null,"",null,null,"",null,null,0,0,0]
[null,null,null,"",null,null,"",null,null,0,0,0]
[null,null,null,"",null,null,"",null,null,0,0,0]
[null,null,null,"",null,null,"",null,null,0,0,0]
[null,null,null,"",null,null,"",null,null,0,0,0]
[null,null,null,"",null,null,"",null,null,0,0,0]
[null,null,null,"",null,null,"",null,null,0,0,0]
[null,null,null,{"$f":"IF(C146<B146,\"Check Finish\",\"\")","v":""},null,null,{"$f":"IF(F146<E146,\"Check Finish\",\"\")","v":""},null,null,{"$f":"IF(I146=\"Work\",((F146-E146)*24+(C146-B146)*24),0)","v":0},{"$f":"IF(I146=\"Business\",((F146-E146)*24+(C146-B146)*24),0)","v":0},{"$f":"IF(I146=\"Personal\",((F146-E146)*24+(C146-B146)*24),0)","v":0}]
[null,null,null,"",null,null,"",null,null,0,0,0]
[null,null,null,"",null,null,"",null,null,0,0,0]
[null,null,null,"",null,null,"",null,null,0,0,0]
[null,null,null,"",null,null,"",null,null,0,0,0]
[null,null,null,"",null,null,"",null,null,0,0,0]
[null,null,null,"",null,null,"",null,null,0,0,0]
[null,null,null,"",null,null,"",null,null,0,0,0]
[null,null,null,"",null,null,"",null,null,0,0,0]
[null,null,null,"",null,null,"",null,null,0,0,0]
[null,null,null,"",null,null,"",null,null,0,0,0]
[null,null,null,"",null,null,"",null,null,0,0,0]
[null,null,null,"",null,null,"",null,null,0,0,0]
[null,null,null,"",null,null,"",null,null,0,0,0]
[null,null,null,"",null,null,"",null,null,0,0,0]
[null,null,null,"",null,null,"",null,null,0,0,0]
[null,null,null,"",null,null,"",null,null,0,0,0]
[null,null,null,"",null,null,"",null,null,0,0,0]
[null,null,null,"",null,null,"",null,null,0,0,0]
[null,null,null,"",null,null,"",null,null,0,0,0]
[null,null,null,"",null,null,"",null,null,0,0,0]
[null,null,null,"",null,null,"",null,null,0,0,0]
[null,null,null,"",null,null,"",null,null,0,0,0]
[null,null,null,"",null,null,"",null,null,0,0,0]
[null,null,null,"",null,null,"",null,null,0,0,0]
[null,null,null,"",null,null,"",null,null,0,0,0]
[null,null,null,"",null,null,"",null,null,0,0,0]
[null,null,null,"",null,null,"",null,null,0,0,0]
[null,null,null,"",null,null,"",null,null,0,0,0]
[null,null,null,"",null,null,"",null,null,0,0,0]
[null,null,null,"",null,null,"",null,null,0,0,0]
[null,null,null,"",null,null,"",null,null,0,0,0]
[null,null,null,"",null,null,"",null,null,0,0,0]
[null,null,null,"",null,null,"",null,null,0,0,0]
[null,null,null,"",null,null,"",null,null,0,0,0]
[null,null,null,"",null,null,"",null,null,0,0,0]
[null,null,null,"",null,null,"",null,null,0,0,0]
[null,null,null,"",null,null,"",null,null,0,0,0]
[null,null,null,"",null,null,"",null,null,0,0,0]
[null,null,null,"",null,null,"",null,null,0,0,0]
[null,null,null,"",null,null,"",null,null,0,0,0]
[null,null,null,"",null,null,"",null,null,0,0,0]
[null,null,null,"",null,null,"",null,null,0,0,0]
[null,null,null,"",null,null,"",null,null,0,0,0]
[null,null,null,"",null,null,"",null,null,0,0,0]
[null,null,null,"",null,null,"",null,null,0,0,0]
[null,null,null,"",null,null,"",null,null,0,0,0]
[null,null,null,"",null,null,"",null,null,0,0,0]
[null,null,null,"",null,null,"",null,null,0,0,0]
[null,null,null,"",null,null,"",null,null,0,0,0]
[null,null,null,"",null,null,"",null,null,0,0,0]
[null,null,null,"",null,null,"",null,null,0,0,0]
[null,null,null,"",null,null,"",null,null,0,0,0]
[null,null,null,"",null,null,"",null,null,0,0,0]
[null,null,null,"",null,null,"",null,null,0,0,0]
[null,null,null,"",null,null,"",null,null,0,0,0]
[null,null,null,"",null,null,"",null,null,0,0,0]
[null,null,null,"",null,null,"",null,null,0,0,0]
[null,null,null,"",null,null,"",null,null,0,0,0]
[null,null,null,"",null,null,"",null,null,0,0,0]
[null,null,null,"",null,null,"",null,null,0,0,0]
[null,null,null,"",null,null,"",null,null,0,0,0]
[null,null,null,"",null,null,"",null,null,0,0,0]
[null,null,null,"",null,null,"",null,null,0,0,0]
[null,null,null,{"$f":"IF(C210<B210,\"Check Finish\",\"\")","v":""},null,null,{"$f":"IF(F210<E210,\"Check Finish\",\"\")","v":""},null,null,{"$f":"IF(I210=\"Work\",((F210-E210)*24+(C210-B210)*24),0)","v":0},{"$f":"IF(I210=\"Business\",((F210-E210)*24+(C210-B210)*24),0)","v":0},{"$f":"IF(I210=\"Personal\",((F210-E210)*24+(C210-B210)*24),0)","v":0}]
[null,null,null,"",null,null,"",null,null,0,0,0]
[null,null,null,"",null,null,"",null,null,0,0,0]
[null,null,null,"",null,null,"",null,null,0,0,0]
[null,null,null,"",null,null,"",null,null,0,0,0]
[null,null,null,"",null,null,"",null,null,0,0,0]
[null,null,null,"",null,null,"",null,null,0,0,0]
[null,null,null,"",null,null,"",null,null,0,0,0]
[null,null,null,"",null,null,"",null,null,0,0,0]
[null,null,null,"",null,null,"",null,null,0,0,0]
[null,null,null,"",null,null,"",null,null,0,0,0]
[null,null,null,"",null,null,"",null,null,0,0,0]
[null,null,null,"",null,null,"",null,null,0,0,0]
[null,null,null,"",null,null,"",null,null,0,0,0]
[null,null,null,"",null,null,"",null,null,0,0,0]
[null,null,null,"",null,null,"",null,null,0,0,0]
[null,null,null,"",null,null,"",null,null,0,0,0]
[null,null,null,"",null,null,"",null,null,0,0,0]
[null,null,null,"",null,null,"",null,null,0,0,0]
[null,null,null,"",null,null,"",null,null,0,0,0]
[null,null,null,"",null,null,"",null,null,0,0,0]
[null,null,null,"",null,null,"",null,null,0,0,0]
[null,null,null,"",null,null,"",null,null,0,0,0]
[null,null,null,"",null,null,"",null,null,0,0,0]
[null,null,null,"",null,null,"",null,null,0,0,0]
[null,null,null,"",null,null,"",null,null,0,0,0]
[null,null,null,"",null,null,"",null,null,0,0,0]
[null,null,null,"",null,null,"",null,null,0,0,0]
[null,null,null,"",null,null,"",null,null,0,0,0]
[null,null,null,"",null,null,"",null,null,0,0,0]
[null,null,null,"",null,null,"",null,null,0,0,0]
[null,null,null,"",null,null,"",null,null,0,0,0]
[null,null,null,"",null,null,"",null,null,0,0,0]
[null,null,null,"",null,null,"",null,null,0,0,0]
[null,null,null,"",null,null,"",null,null,0,0,0]
[null,null,null,"",null,null,"",null,null,0,0,0]
[null,null,null,"",null,null,"",null,null,0,0,0]
[null,null,null,"",null,null,"",null,null,0,0,0]
[null,null,null,"",null,null,"",null,null,0,0,0]
[null,null,null,"",null,null,"",null,null,0,0,0]
[null,null,null,"",null,null,"",null,null,0,0,0]
[null,null,null,"",null,null,"",null,null,0,0,0]
[null,null,null,"",null,null,"",null,null,0,0,0]
[null,null,null,"",null,null,"",null,null,0,0,0]
[null,null,null,"",null,null,"",null,null,0,0,0]
[null,null,null,"",null,null,"",null,null,0,0,0]
[null,null,null,"",null,null,"",null,null,0,0,0]
[null,null,null,"",null,null,"",null,null,0,0,0]
[null,null,null,"",null,null,"",null,null,0,0,0]
[null,null,null,"",null,null,"",null,null,0,0,0]
[null,null,null,"",null,null,"",null,null,0,0,0]
[null,null,null,"",null,null,"",null,null,0,0,0]
[null,null,null,"",null,null,"",null,null,0,0,0]
[null,null,null,"",null,null,"",null,null,0,0,0]
[null,null,null,"",null,null,"",null,null,0,0,0]
[null,null,null,"",null,null,"",null,null,0,0,0]
[null,null,null,"",null,null,"",null,null,0,0,0]
[null,null,null,"",null,null,"",null,null,0,0,0]
[null,null,null,"",null,null,"",null,null,0,0,0]
[null,null,null,"",null,null,"",null,null,0,0,0]
[null,null,null,"",null,null,"",null,null,0,0,0]
[null,null,null,"",null,null,"",null,null,0,0,0]
[null,null,null,"",null,null,"",null,null,0,0,0]
[null,null,null,"",null,null,"",null,null,0,0,0]
[null,null,null,{"$f":"IF(C274<B274,\"Check Finish\",\"\")","v":""},null,null,{"$f":"IF(F274<E274,\"Check Finish\",\"\")","v":""},null,null,{"$f":"IF(I274=\"Work\",((F274-E274)*24+(C274-B274)*24),0)","v":0},{"$f":"IF(I274=\"Business\",((F274-E274)*24+(C274-B274)*24),0)","v":0},{"$f":"IF(I274=\"Personal\",((F274-E274)*24+(C274-B274)*24),0)","v":0}]
[null,null,null,"",null,null,"",null,null,0,0,0]
[null,null,null,"",null,null,"",null,null,0,0,0]
[null,null,null,"",null,null,"",null,null,0,0,0]
[null,null,null,"",null,null,"",null,null,0,0,0]
[null,null,null,"",null,null,"",null,null,0,0,0]
[null,null,null,"",null,null,"",null,null,0,0,0]
[null,null,null,"",null,null,"",null,null,0,0,0]
[null,null,null,"",null,null,"",null,null,0,0,0]
[null,null,null,"",null,null,"",null,null,0,0,0]
[null,null,null,"",null,null,"",null,null,0,0,0]
[null,null,null,"",null,null,"",null,null,0,0,0]
[null,null,null,"",null,null,"",null,null,0,0,0]
[null,null,null,"",null,null,"",null,null,0,0,0]
[null,null,null,"",null,null,"",null,null,0,0,0]
[null,null,null,"",null,null,"",null,null,0,0,0]
[null,null,null,"",null,null,"",null,null,0,0,0]
[null,null,null,"",null,null,"",null,null,0,0,0]
[null,null,null,"",null,null,"",null,null,0,0,0]
[null,null,null,"",null,null,"",null,null,0,0,0]
[null,null,null,"",null,null,"",null,null,0,0,0]
[null,null,null,"",null,null,"",null,null,0,0,0]
[null,null,null,"",null,null,"",null,null,0,0,0]
[null,null,null,"",null,null,"",null,null,0,0,0]
[null,null,null,"",null,null,"",null,null,0,0,0]
[null,null,null,"",null,null,"",null,null,0,0,0]
[null,null,null,"",null,null,"",null,null,0,0,0]
[null,null,null,"",null,null,"",null,null,0,0,0]
[null,null,null,"",null,null,"",null,null,0,0,0]
[null,null,null,"",null,null,"",null,null,0,0,0]
[null,null,null,"",null,null,"",null,null,0,0,0]
[null,null,null,"",null,null,"",null,null,0,0,0]
[null,null,null,"",null,null,"",null,null,0,0,0]
[null,null,null,"",null,null,"",null,null,0,0,0]
[null,null,null,"",null,null,"",null,null,0,0,0]
[null,null,null,"",null,null,"",null,null,0,0,0]
[null,null,null,"",null,null,"",null,null,0,0,0]
[null,null,null,"",null,null,"",null,null,0,0,0]
[null,null,null,"",null,null,"",null,null,0,0,0]
[null,null,null,"",null,null,"",null,null,0,0,0]
[null,null,null,"",null,null,"",null,null,0,0,0]
[null,null,null,"",null,null,"",null,null,0,0,0]
[null,null,null,"",null,null,"",null,null,0,0,0]
[null,null,null,"",null,null,"",null,null,0,0,0]
[null,null,null,"",null,null,"",null,null,0,0,0]
[null,null,null,"",null,null,"",null,null,0,0,0]
[null,null,null,"",null,null,"",null,null,0,0,0]
[null,null,null,"",null,null,"",null,null,0,0,0]
[null,null,null,"",null,null,"",null,null,0,0,0]
[null,null,null,"",null,null,"",null,null,0,0,0]
[null,null,null,"",null,null,"",null,null,0,0,0]
[null,null,null,"",null,null,"",null,null,0,0,0]
[null,null,null,"",null,null,"",null,null,0,0,0]
[null,null,null,"",null,null,"",null,null,0,0,0]
[null,null,null,"",null,null,"",null,null,0,0,0]
[null,null,null,"",null,null,"",null,null,0,0,0]
[null,null,null,"",null,null,"",null,null,0,0,0]
[null,null,null,"",null,null,"",null,null,0,0,0]
[null,null,null,"",null,null,"",null,null,0,0,0]
[null,null,null,"",null,null,"",null,null,0,0,0]
[null,null,null,"",null,null,"",null,null,0,0,0]
[null,null,null,"",null,null,"",null,null,0,0,0]
[null,null,null,"",null,null,"",null,null,0,0,0]
[null,null,null,"",null,null,"",null,null,0,0,0]
[null,null,null,{"$f":"IF(C338<B338,\"Check Finish\",\"\")","v":""},null,null,{"$f":"IF(F338<E338,\"Check Finish\",\"\")","v":""},null,null,{"$f":"IF(I338=\"Work\",((F338-E338)*24+(C338-B338)*24),0)","v":0},{"$f":"IF(I338=\"Business\",((F338-E338)*24+(C338-B338)*24),0)","v":0},{"$f":"IF(I338=\"Personal\",((F338-E338)*24+(C338-B338)*24),0)","v":0}]
[null,null,null,"",null,null,"",null,null,0,0,0]
[null,null,null,"",null,null,"",null,null,0,0,0]
[null,null,null,"",null,null,"",null,null,0,0,0]
[null,null,null,"",null,null,"",null,null,0,0,0]
[null,null,null,"",null,null,"",null,null,0,0,0]
[null,null,null,"",null,null,"",null,null,0,0,0]
[null,null,null,"",null,null,"",null,null,0,0,0]
[null,null,null,"",null,null,"",null,null,0,0,0]
[null,null,null,"",null,null,"",null,null,0,0,0]
[null,null,null,"",null,null,"",null,null,0,0,0]
[null,null,null,"",null,null,"",null,null,0,0,0]
[null,null,null,"",null,null,"",null,null,0,0,0]
[null,null,null,"",null,null,"",null,null,0,0,0]
[null,null,null,"",null,null,"",null,null,0,0,0]
[null,null,null,"",null,null,"",null,null,0,0,0]
[null,null,null,"",null,null,"",null,null,0,0,0]
[null,null,null,"",null,null,"",null,null,0,0,0]
[null,null,null,"",null,null,"",null,null,0,0,0]
[null,null,null,"",null,null,"",null,null,0,0,0]
[null,null,null,"",null,null,"",null,null,0,0,0]
[null,null,null,"",null,null,"",null,null,0,0,0]
[null,null,null,"",null,null,"",null,null,0,0,0]
[null,null,null,"",null,null,"",null,null,0,0,0]
[null,null,null,"",null,null,"",null,null,0,0,0]
[null,null,null,"",null,null,"",null,null,0,0,0]
[null,null,null,"",null,null,"",null,null,0,0,0]
[null,null,null,"",null,null,"",null,null,0,0,0]
[null,null,null,"",null,null,"",null,null,0,0,0]
[null,null,null,"",null,null,"",null,null,0,0,0]
[null,null,null,"",null,null,"",null,null,0,0,0]
[null,null,null,"",null,null,"",null,null,0,0,0]
[null,null,null,"",null,null,"",null,null,0,0,0]
[null,null,null,"",null,null,"",null,null,0,0,0]
[null,null,null,"",null,null,"",null,null,0,0,0]
[null,null,null,"",null,null,"",null,null,0,0,0]
[null,null,null,"",null,null,"",null,null,0,0,0]
[null,null,null,"",null,null,"",null,null,0,0,0]
[null,null,null,"",null,null,"",null,null,0,0,0]
[null,null,null,"",null,null,"",null,null,0,0,0]
[null,null,null,"",null,null,"",null,null,0,0,0]
[null,null,null,"",null,null,"",null,null,0,0,0]
[null,null,null,"",null,null,"",null,null,0,0,0]
[null,null,null,"",null,null,"",null,null,0,0,0]
[null,null,null,"",null,null,"",null,null,0,0,0]
[null,null,null,"",null,null,"",null,null,0,0,0]
[null,null,null,"",null,null,"",null,null,0,0,0]
[null,null,null,"",null,null,"",null,null,0,0,0]
[null,null,null,"",null,null,"",null,null,0,0,0]
[null,null,null,"",null,null,"",null,null,0,0,0]
[null,null,null,"",null,null,"",null,null,0,0,0]
[null,null,null,"",null,null,"",null,null,0,0,0]
[null,null,null,"",null,null,"",null,null,0,0,0]
[null,null,null,"",null,null,"",null,null,0,0,0]
[null,null,null,"",null,null,"",null,null,0,0,0]
[null,null,null,"",null,null,"",null,null,0,0,0]
[null,null,null,"",null,null,"",null,null,0,0,0]
[null,null,null,"",null,null,"",null,null,0,0,0]
[null,null,null,"",null,null,"",null,null,0,0,0]
[null,null,null,"",null,null,"",null,null,0,0,0]
[null,null,null,"",null,null,"",null,null,0,0,0]
[null,null,null,"",null,null,"",null,null,0,0,0]
[null,null,null,"",null,null,"",null,null,0,0,0]
[null,null,null,"",null,null,"",null,null,0,0,0]
[null,null,null,{"$f":"IF(C402<B402,\"Check Finish\",\"\")","v":""},null,null,{"$f":"IF(F402<E402,\"Check Finish\",\"\")","v":""},null,null,{"$f":"IF(I402=\"Work\",((F402-E402)*24+(C402-B402)*24),0)","v":0},{"$f":"IF(I402=\"Business\",((F402-E402)*24+(C402-B402)*24),0)","v":0},{"$f":"IF(I402=\"Personal\",((F402-E402)*24+(C402-B402)*24),0)","v":0}]
[null,null,null,"",null,null,"",null,null,0,0,0]
[null,null,null,"",null,null,"",null,null,0,0,0]
[null,null,null,"",null,null,"",null,null,0,0,0]
[null,null,null,"",null,null,"",null,null,0,0,0]
[null,null,null,"",null,null,"",null,null,0,0,0]
[null,null,null,"",null,null,"",null,null,0,0,0]
[null,null,null,"",null,null,"",null,null,0,0,0]
[null,null,null,"",null,null,"",null,null,0,0,0]
[null,null,null,"",null,null,"",null,null,0,0,0]
[null,null,null,"",null,null,"",null,null,0,0,0]
[null,null,null,"",null,null,"",null,null,0,0,0]
[null,null,null,"",null,null,"",null,null,0,0,0]
[null,null,null,"",null,null,"",null,null,0,0,0]
[null,null,null,"",null,null,"",null,null,0,0,0]
[null,null,null,"",null,null,"",null,null,0,0,0]
[null,null,null,"",null,null,"",null,null,0,0,0]
[null,null,null,"",null,null,"",null,null,0,0,0]
[null,null,null,"",null,null,"",null,null,0,0,0]
[null,null,null,"",null,null,"",null,null,0,0,0]
[null,null,null,"",null,null,"",null,null,0,0,0]
[null,null,null,"",null,null,"",null,null,0,0,0]
[null,null,null,"",null,null,"",null,null,0,0,0]
[null,null,null,"",null,null,"",null,null,0,0,0]
[null,null,null,"",null,null,"",null,null,0,0,0]
[null,null,null,"",null,null,"",null,null,0,0,0]
[null,null,null,"",null,null,"",null,null,0,0,0]
[null,null,null,"",null,null,"",null,null,0,0,0]
[null,null,null,"",null,null,"",null,null,0,0,0]
[null,null,null,"",null,null,"",null,null,0,0,0]
[null,null,null,"",null,null,"",null,null,0,0,0]
[null,null,null,"",null,null,"",null,null,0,0,0]
[null,null,null,"",null,null,"",null,null,0,0,0]
[null,null,null,"",null,null,"",null,null,0,0,0]
[null,null,null,"",null,null,"",null,null,0,0,0]
[null,null,null,"",null,null,"",null,null,0,0,0]
[null,null,null,"",null,null,"",null,null,0,0,0]
[null,null,null,"",null,null,"",null,null,0,0,0]
[null,null,null,"",null,null,"",null,null,0,0,0]
[null,null,null,"",null,null,"",null,null,0,0,0]
[null,null,null,"",null,null,"",null,null,0,0,0]
[null,null,null,"",null,null,"",null,null,0,0,0]
[null,null,null,"",null,null,"",null,null,0,0,0]
[null,null,null,"",null,null,"",null,null,0,0,0]
[null,null,null,"",null,null,"",null,null,0,0,0]
[null,null,null,"",null,null,"",null,null,0,0,0]
[null,null,null,"",null,null,"",null,null,0,0,0]
[null,null,null,"",null,null,"",null,null,0,0,0]
[null,null,null,"",null,null,"",null,null,0,0,0]
[null,null,null,"",null,null,"",null,null,0,0,0]
[null,null,null,"",null,null,"",null,null,0,0,0]
[null,null,null,"",null,null,"",null,null,0,0,0]
[null,null,null,"",null,null,"",null,null,0,0,0]
[null,null,null,"",null,null,"",null,null,0,0,0]
[null,null,null,"",null,null,"",null,null,0,0,0]
[null,null,null,"",null,null,"",null,null,0,0,0]
[null,null,null,"",null,null,"",null,null,0,0,0]
[null,null,null,"",null,null,"",null,null,0,0,0]
[null,null,null,"",null,null,"",null,null,0,0,0]
[null,null,null,"",null,null,"",null,null,0,0,0]
[null,null,null,"",null,null,"",null,null,0,0,0]
[null,null,null,"",null,null,"",null,null,0,0,0]
[null,null,null,"",null,null,"",null,null,0,0,0]
[null,null,null,"",null,null,"",null,null,0,0,0]
[null,null,null,{"$f":"IF(C466<B466,\"Check Finish\",\"\")","v":""},null,null,{"$f":"IF(F466<E466,\"Check Finish\",\"\")","v":""},null,null,{"$f":"IF(I466=\"Work\",((F466-E466)*24+(C466-B466)*24),0)","v":0},{"$f":"IF(I466=\"Business\",((F466-E466)*24+(C466-B466)*24),0)","v":0},{"$f":"IF(I466=\"Personal\",((F466-E466)*24+(C466-B466)*24),0)","v":0}]
[null,null,null,"",null,null,"",null,null,0,0,0]
[null,null,null,"",null,null,"",null,null,0,0,0]
[null,null,null,"",null,null,"",null,null,0,0,0]
[null,null,null,"",null,null,"",null,null,0,0,0]
[null,null,null,"",null,null,"",null,null,0,0,0]
[null,null,null,"",null,null,"",null,null,0,0,0]
[null,null,null,"",null,null,"",null,null,0,0,0]
[null,null,null,"",null,null,"",null,null,0,0,0]
[null,null,null,"",null,null,"",null,null,0,0,0]
[null,null,null,"",null,null,"",null,null,0,0,0]
[null,null,null,"",null,null,"",null,null,0,0,0]
[null,null,null,"",null,null,"",null,null,0,0,0]
[null,null,null,"",null,null,"",null,null,0,0,0]
[null,null,null,"",null,null,"",null,null,0,0,0]
[null,null,null,"",null,null,"",null,null,0,0,0]
[null,null,null,"",null,null,"",null,null,0,0,0]
[null,null,null,"",null,null,"",null,null,0,0,0]
[null,null,null,"",null,null,"",null,null,0,0,0]
[null,null,null,"",null,null,"",null,null,0,0,0]
[null,null,null,"",null,null,"",null,null,0,0,0]
[null,null,null,"",null,null,"",null,null,0,0,0]
[null,null,null,"",null,null,"",null,null,0,0,0]
[null,null,null,"",null,null,"",null,null,0,0,0]
[null,null,null,"",null,null,"",null,null,0,0,0]
[null,null,null,"",null,null,"",null,null,0,0,0]
[null,null,null,"",null,null,"",null,null,0,0,0]
[null,null,null,"",null,null,"",null,null,0,0,0]
[null,null,null,"",null,null,"",null,null,0,0,0]
[null,null,null,"",null,null,"",null,null,0,0,0]
[null,null,null,"",null,null,"",null,null,0,0,0]
[null,null,null,"",null,null,"",null,null,0,0,0]
[null,null,null,"",null,null,"",null,null,0,0,0]
[null,null,null,"",null,null,"",null,null,0,0,0]
[null,null,null,"",null,null,"",null,null,0,0,0]
[null,null,null,"",null,null,"",null,null,0,0,0]
[null,null,null,"",null,null,"",null,null,0,0,0]
[null,null,null,"",null,null,"",null,null,0,0,0]
[null,null,null,"",null,null,"",null,null,0,0,0]
[null,null,null,"",null,null,"",null,null,0,0,0]
[null,null,null,"",null,null,"",null,null,0,0,0]
[null,null,null,"",null,null,"",null,null,0,0,0]
[null,null,null,"",null,null,"",null,null,0,0,0]
[null,null,null,"",null,null,"",null,null,0,0,0]
[null,null,null,"",null,null,"",null,null,0,0,0]
[null,null,null,"",null,null,"",null,null,0,0,0]
[null,null,null,"",null,null,"",null,null,0,0,0]
[null,null,null,"",null,null,"",null,null,0,0,0]
[null,null,null,"",null,null,"",null,null,0,0,0]
[null,null,null,"",null,null,"",null,null,0,0,0]
[null,null,null,"",null,null,"",null,null,0,0,0]
[null,null,null,"",null,null,"",null,null,0,0,0]
[null,null,null,"",null,null,"",null,null,0,0,0]
[null,null,null,"",null,null,"",null,null,0,0,0]
[null,null,null,"",null,null,"",null,null,0,0,0]
[null,null,null,"",null,null,"",null,null,0,0,0]
[null,null,null,"",null,null,"",null,null,0,0,0]
[null,null,null,"",null,null,"",null,null,0,0,0]
[null,null,null,"",null,null,"",null,null,0,0,0]
[null,null,null,"",null,null,"",null,null,0,0,0]
[null,null,null,"",null,null,"",null,null,0,0,0]
[null,null,null,"",null,null,"",null,null,0,0,0]
[null,null,null,"",null,null,"",null,null,0,0,0]
[null,null,null,"",null,null,"",null,null,0,0,0]
[null,null,null,{"$f":"IF(C530<B530,\"Check Finish\",\"\")","v":""},null,null,{"$f":"IF(F530<E530,\"Check Finish\",\"\")","v":""},null,null,{"$f":"IF(I530=\"Work\",((F530-E530)*24+(C530-B530)*24),0)","v":0},{"$f":"IF(I530=\"Business\",((F530-E530)*24+(C530-B530)*24),0)","v":0},{"$f":"IF(I530=\"Personal\",((F530-E530)*24+(C530-B530)*24),0)","v":0}]
[null,null,null,"",null,null,"",null,null,0,0,0]
[null,null,null,"",null,null,"",null,null,0,0,0]
[null,null,null,"",null,null,"",null,null,0,0,0]
[null,null,null,"",null,null,"",null,null,0,0,0]
[null,null,null,"",null,null,"",null,null,0,0,0]
[null,null,null,"",null,null,"",null,null,0,0,0]
[null,null,null,"",null,null,"",null,null,0,0,0]
[null,null,null,"",null,null,"",null,null,0,0,0]
[null,null,null,"",null,null,"",null,null,0,0,0]
[null,null,null,"",null,null,"",null,null,0,0,0]
[null,null,null,"",null,null,"",null,null,0,0,0]
[null,null,null,"",null,null,"",null,null,0,0,0]
[null,null,null,"",null,null,"",null,null,0,0,0]
[null,null,null,"",null,null,"",null,null,0,0,0]
[null,null,null,"",null,null,"",null,null,0,0,0]
[null,null,null,"",null,null,"",null,null,0,0,0]
[null,null,null,"",null,null,"",null,null,0,0,0]
[null,null,null,"",null,null,"",null,null,0,0,0]
[null,null,null,"",null,null,"",null,null,0,0,0]
[null,null,null,"",null,null,"",null,null,0,0,0]
[null,null,null,"",null,null,"",null,null,0,0,0]
[null,null,null,"",null,null,"",null,null,0,0,0]
[null,null,null,"",null,null,"",null,null,0,0,0]
[null,null,null,"",null,null,"",null,null,0,0,0]
[null,null,null,"",null,null,"",null,null,0,0,0]
[null,null,null,"",null,null,"",null,null,0,0,0]
[null,null,null,"",null,null,"",null,null,0,0,0]
[null,null,null,"",null,null,"",null,null,0,0,0]
[null,null,null,"",null,null,"",null,null,0,0,0]
[null,null,null,"",null,null,"",null,null,0,0,0]
[null,null,null,"",null,null,"",null,null,0,0,0]
[null,null,null,"",null,null,"",null,null,0,0,0]
[null,null,null,"",null,null,"",null,null,0,0,0]
[null,null,null,"",null,null,"",null,null,0,0,0]
[null,null,null,"",null,null,"",null,null,0,0,0]
[null,null,null,"",null,null,"",null,null,0,0,0]
[null,null,null,"",null,null,"",null,null,0,0,0]
[null,null,null,"",null,null,"",null,null,0,0,0]
[null,null,null,"",null,null,"",null,null,0,0,0]
[null,null,null,"",null,null,"",null,null,0,0,0]
[null,null,null,"",null,null,"",null,null,0,0,0]
[null,null,null,"",null,null,"",null,null,0,0,0]
[null,null,null,"",null,null,"",null,null,0,0,0]
[null,null,null,"",null,null,"",null,null,0,0,0]
[null,null,null,"",null,null,"",null,null,0,0,0]
[null,null,null,"",null,null,"",null,null,0,0,0]
[null,null,null,"",null,null,"",null,null,0,0,0]
[null,null,null,"",null,null,"",null,null,0,0,0]
[null,null,null,"",null,null,"",null,null,0,0,0]
[null,null,null,"",null,null,"",null,null,0,0,0]
[null,null,null,"",null,null,"",null,null,0,0,0]
[null,null,null,"",null,null,"",null,null,0,0,0]
[null,null,null,"",null,null,"",null,null,0,0,0]
[null,null,null,"",null,null,"",null,null,0,0,0]
[null,null,null,"",null,null,"",null,null,0,0,0]
[null,null,null,"",null,null,"",null,null,0,0,0]
[null,null,null,"",null,null,"",null,null,0,0,0]
[null,null,null,"",null,null,"",null,null,0,0,0]
[null,null,null,"",null,null,"",null,null,0,0,0]
[null,null,null,"",null,null,"",null,null,0,0,0]
[null,null,null,"",null,null,"",null,null,0,0,0]
[null,null,null,"",null,null,"",null,null,0,0,0]
[null,null,null,"",null,null,"",null,null,0,0,0]
[null,null,null,{"$f":"IF(C594<B594,\"Check Finish\",\"\")","v":""},null,null,{"$f":"IF(F594<E594,\"Check Finish\",\"\")","v":""},null,null,{"$f":"IF(I594=\"Work\",((F594-E594)*24+(C594-B594)*24),0)","v":0},{"$f":"IF(I594=\"Business\",((F594-E594)*24+(C594-B594)*24),0)","v":0},{"$f":"IF(I594=\"Personal\",((F594-E594)*24+(C594-B594)*24),0)","v":0}]
[null,null,null,"",null,null,"",null,null,0,0,0]
[null,null,null,"",null,null,"",null,null,0,0,0]
[null,null,null,"",null,null,"",null,null,0,0,0]
[null,null,null,"",null,null,"",null,null,0,0,0]
[null,null,null,"",null,null,"",null,null,0,0,0]
[null,null,null,"",null,null,"",null,null,0,0,0]
[null,null,null,"",null,null,"",null,null,0,0,0]
[null,null,null,"",null,null,"",null,null,0,0,0]
[null,null,null,"",null,null,"",null,null,0,0,0]
[null,null,null,"",null,null,"",null,null,0,0,0]
[null,null,null,"",null,null,"",null,null,0,0,0]
[null,null,null,"",null,null,"",null,null,0,0,0]
[null,null,null,"",null,null,"",null,null,0,0,0]
[null,null,null,"",null,null,"",null,null,0,0,0]
[null,null,null,"",null,null,"",null,null,0,0,0]
[null,null,null,"",null,null,"",null,null,0,0,0]
[null,null,null,"",null,null,"",null,null,0,0,0]
[null,null,null,"",null,null,"",null,null,0,0,0]
[null,null,null,"",null,null,"",null,null,0,0,0]
[null,null,null,"",null,null,"",null,null,0,0,0]
[null,null,null,"",null,null,"",null,null,0,0,0]
[null,null,null,"",null,null,"",null,null,0,0,0]
[null,null,null,"",null,null,"",null,null,0,0,0]
[null,null,null,"",null,null,"",null,null,0,0,0]
[null,null,null,"",null,null,"",null,null,0,0,0]
[null,null,null,"",null,null,"",null,null,0,0,0]
[null,null,null,"",null,null,"",null,null,0,0,0]
[null,null,null,"",null,null,"",null,null,0,0,0]
[null,null,null,"",null,null,"",null,null,0,0,0]
[null,null,null,"",null,null,"",null,null,0,0,0]
[null,null,null,"",null,null,"",null,null,0,0,0]
[null,null,null,"",null,null,"",null,null,0,0,0]
[null,null,null,"",null,null,"",null,null,0,0,0]
[null,null,null,"",null,null,"",null,null,0,0,0]
[null,null,null,"",null,null,"",null,null,0,0,0]
[null,null,null,"",null,null,"",null,null,0,0,0]
[null,null,null,"",null,null,"",null,null,0,0,0]
[null,null,null,"",null,null,"",null,null,0,0,0]
[null,null,null,"",null,null,"",null,null,0,0,0]
[null,null,null,"",null,null,"",null,null,0,0,0]
[null,null,null,"",null,null,"",null,null,0,0,0]
[null,null,null,"",null,null,"",null,null,0,0,0]
[null,null,null,"",null,null,"",null,null,0,0,0]
[null,null,null,"",null,null,"",null,null,0,0,0]
[null,null,null,"",null,null,"",null,null,0,0,0]
[null,null,null,"",null,null,"",null,null,0,0,0]
[null,null,null,"",null,null,"",null,null,0,0,0]
[null,null,null,"",null,null,"",null,null,0,0,0]
[null,null,null,"",null,null,"",null,null,0,0,0]
[null,null,null,"",null,null,"",null,null,0,0,0]
[null,null,null,"",null,null,"",null,null,0,0,0]
[null,null,null,"",null,null,"",null,null,0,0,0]
[null,null,null,"",null,null,"",null,null,0,0,0]
[null,null,null,"",null,null,"",null,null,0,0,0]
[null,null,null,"",null,null,"",null,null,0,0,0]
[null,null,null,"",null,null,"",null,null,0,0,0]
[null,null,null,"",null,null,"",null,null,0,0,0]
[null,null,null,"",null,null,"",null,null,0,0,0]
[null,null,null,"",null,null,"",null,null,0,0,0]
[null,null,null,"",null,null,"",null,null,0,0,0]
[null,null,null,"",null,null,"",null,null,0,0,0]
[null,null,null,"",null,null,"",null,null,0,0,0]
[null,null,null,"",null,null,"",null,null,0,0,0]
[null,null,null,{"$f":"IF(C658<B658,\"Check Finish\",\"\")","v":""},null,null,{"$f":"IF(F658<E658,\"Check Finish\",\"\")","v":""},null,null,{"$f":"IF(I658=\"Work\",((F658-E658)*24+(C658-B658)*24),0)","v":0},{"$f":"IF(I658=\"Business\",((F658-E658)*24+(C658-B658)*24),0)","v":0},{"$f":"IF(I658=\"Personal\",((F658-E658)*24+(C658-B658)*24),0)","v":0}]
[null,null,null,"",null,null,"",null,null,0,0,0]
[null,null,null,"",null,null,"",null,null,0,0,0]
[null,null,null,"",null,null,"",null,null,0,0,0]
[null,null,null,"",null,null,"",null,null,0,0,0]
[null,null,null,"",null,null,"",null,null,0,0,0]
[null,null,null,"",null,null,"",null,null,0,0,0]
[null,null,null,"",null,null,"",null,null,0,0,0]
[null,null,null,"",null,null,"",null,null,0,0,0]
[null,null,null,"",null,null,"",null,null,0,0,0]
[null,null,null,"",null,null,"",null,null,0,0,0]
[null,null,null,"",null,null,"",null,null,0,0,0]
[null,null,null,"",null,null,"",null,null,0,0,0]
[null,null,null,"",null,null,"",null,null,0,0,0]
[null,null,null,"",null,null,"",null,null,0,0,0]
[null,null,null,"",null,null,"",null,null,0,0,0]
[null,null,null,"",null,null,"",null,null,0,0,0]
[null,null,null,"",null,null,"",null,null,0,0,0]
[null,null,null,"",null,null,"",null,null,0,0,0]
[null,null,null,"",null,null,"",null,null,0,0,0]
[null,null,null,"",null,null,"",null,null,0,0,0]
[null,null,null,"",null,null,"",null,null,0,0,0]
[null,null,null,"",null,null,"",null,null,0,0,0]
[null,null,null,"",null,null,"",null,null,0,0,0]
[null,null,null,"",null,null,"",null,null,0,0,0]
[null,null,null,"",null,null,"",null,null,0,0,0]
[null,null,null,"",null,null,"",null,null,0,0,0]
[null,null,null,"",null,null,"",null,null,0,0,0]
[null,null,null,"",null,null,"",null,null,0,0,0]
[null,null,null,"",null,null,"",null,null,0,0,0]
[null,null,null,"",null,null,"",null,null,0,0,0]
[null,null,null,"",null,null,"",null,null,0,0,0]
[null,null,null,"",null,null,"",null,null,0,0,0]
[null,null,null,"",null,null,"",null,null,0,0,0]
[null,null,null,"",null,null,"",null,null,0,0,0]
[null,null,null,"",null,null,"",null,null,0,0,0]
[null,null,null,"",null,null,"",null,null,0,0,0]
[null,null,null,"",null,null,"",null,null,0,0,0]
[null,null,null,"",null,null,"",null,null,0,0,0]
[null,null,null,"",null,null,"",null,null,0,0,0]
[null,null,null,"",null,null,"",null,null,0,0,0]
[null,null,null,"",null,null,"",null,null,0,0,0]
[null,null,null,"",null,null,"",null,null,0,0,0]
[null,null,null,"",null,null,"",null,null,0,0,0]
[null,null,null,"",null,null,"",null,null,0,0,0]
[null,null,null,"",null,null,"",null,null,0,0,0]
[null,null,null,"",null,null,"",null,null,0,0,0]
[null,null,null,"",null,null,"",null,null,0,0,0]
[null,null,null,"",null,null,"",null,null,0,0,0]
[null,null,null,"",null,null,"",null,null,0,0,0]
[null,null,null,"",null,null,"",null,null,0,0,0]
[null,null,null,"",null,null,"",null,null,0,0,0]
[null,null,null,"",null,null,"",null,null,0,0,0]
[null,null,null,"",null,null,"",null,null,0,0,0]
[null,null,null,"",null,null,"",null,null,0,0,0]
[null,null,null,"",null,null,"",null,null,0,0,0]
[null,null,null,"",null,null,"",null,null,0,0,0]
[null,null,null,"",null,null,"",null,null,0,0,0]
[null,null,null,"",null,null,"",null,null,0,0,0]
[null,null,null,"",null,null,"",null,null,0,0,0]
[null,null,null,"",null,null,"",null,null,0,0,0]
[null,null,null,"",null,null,"",null,null,0,0,0]
[null,null,null,"",null,null,"",null,null,0,0,0]
[null,null,null,"",null,null,"",null,null,0,0,0]
[null,null,null,{"$f":"IF(C722<B722,\"Check Finish\",\"\")","v":""},null,null,{"$f":"IF(F722<E722,\"Check Finish\",\"\")","v":""},null,null,{"$f":"IF(I722=\"Work\",((F722-E722)*24+(C722-B722)*24),0)","v":0},{"$f":"IF(I722=\"Business\",((F722-E722)*24+(C722-B722)*24),0)","v":0},{"$f":"IF(I722=\"Personal\",((F722-E722)*24+(C722-B722)*24),0)","v":0}]
[null,null,null,"",null,null,"",null,null,0,0,0]
[null,null,null,"",null,null,"",null,null,0,0,0]
[null,null,null,"",null,null,"",null,null,0,0,0]
[null,null,null,"",null,null,"",null,null,0,0,0]
[null,null,null,"",null,null,"",null,null,0,0,0]
[null,null,null,"",null,null,"",null,null,0,0,0]
[null,null,null,"",null,null,"",null,null,0,0,0]
[null,null,null,"",null,null,"",null,null,0,0,0]
[null,null,null,"",null,null,"",null,null,0,0,0]
[null,null,null,"",null,null,"",null,null,0,0,0]
[null,null,null,"",null,null,"",null,null,0,0,0]
[null,null,null,"",null,null,"",null,null,0,0,0]
[null,null,null,"",null,null,"",null,null,0,0,0]
[null,null,null,"",null,null,"",null,null,0,0,0]
[null,null,null,"",null,null,"",null,null,0,0,0]
[null,null,null,"",null,null,"",null,null,0,0,0]
[null,null,null,"",null,null,"",null,null,0,0,0]
[null,null,null,"",null,null,"",null,null,0,0,0]
[null,null,null,"",null,null,"",null,null,0,0,0]
[null,null,null,"",null,null,"",null,null,0,0,0]
[null,null,null,"",null,null,"",null,null,0,0,0]
[null,null,null,"",null,null,"",null,null,0,0,0]
[null,null,null,"",null,null,"",null,null,0,0,0]
[null,null,null,"",null,null,"",null,null,0,0,0]
[null,null,null,"",null,null,"",null,null,0,0,0]
[null,null,null,"",null,null,"",null,null,0,0,0]
[null,null,null,"",null,null,"",null,null,0,0,0]
[null,null,null,"",null,null,"",null,null,0,0,0]
[null,null,null,"",null,null,"",null,null,0,0,0]
[null,null,null,"",null,null,"",null,null,0,0,0]
[null,null,null,"",null,null,"",null,null,0,0,0]
[null,null,null,"",null,null,"",null,null,0,0,0]
[null,null,null,"",null,null,"",null,null,0,0,0]
[null,null,null,"",null,null,"",null,null,0,0,0]
[null,null,null,"",null,null,"",null,null,0,0,0]
[null,null,null,"",null,null,"",null,null,0,0,0]
[null,null,null,"",null,null,"",null,null,0,0,0]
[null,null,null,"",null,null,"",null,null,0,0,0]
[null,null,null,"",null,null,"",null,null,0,0,0]
[null,null,null,"",null,null,"",null,null,0,0,0]
[null,null,null,"",null,null,"",null,null,0,0,0]
[null,null,null,"",null,null,"",null,null,0,0,0]
[null,null,null,"",null,null,"",null,null,0,0,0]
[null,null,null,"",null,null,"",null,null,0,0,0]
[null,null,null,"",null,null,"",null,null,0,0,0]
[null,null,null,"",null,null,"",null,null,0,0,0]
[null,null,null,"",null,null,"",null,null,0,0,0]
[null,null,null,"",null,null,"",null,null,0,0,0]
[null,null,null,"",null,null,"",null,null,0,0,0]
[null,null,null,"",null,null,"",null,null,0,0,0]
[null,null,null,"",null,null,"",null,null,0,0,0]
[null,null,null,"",null,null,"",null,null,0,0,0]
[null,null,null,"",null,null,"",null,null,0,0,0]
[null,null,null,"",null,null,"",null,null,0,0,0]
[null,null,null,"",null,null,"",null,null,0,0,0]
[null,null,null,"",null,null,"",null,null,0,0,0]
[null,null,null,"",null,null,"",null,null,0,0,0]
[null,null,null,"",null,null,"",null,null,0,0,0]
[null,null,null,"",null,null,"",null,null,0,0,0]
[null,null,null,"",null,null,"",null,null,0,0,0]
[null,null,null,"",null,null,"",null,null,0,0,0]
[null,null,null,"",null,null,"",null,null,0,0,0]
[null,null,null,"",null,null,"",null,null,0,0,0]
[null,null,null,{"$f":"IF(C786<B786,\"Check Finish\",\"\")","v":""},null,null,{"$f":"IF(F786<E786,\"Check Finish\",\"\")","v":""},null,null,{"$f":"IF(I786=\"Work\",((F786-E786)*24+(C786-B786)*24),0)","v":0},{"$f":"IF(I786=\"Business\",((F786-E786)*24+(C786-B786)*24),0)","v":0},{"$f":"IF(I786=\"Personal\",((F786-E786)*24+(C786-B786)*24),0)","v":0}]
[null,null,null,"",null,null,"",null,null,0,0,0]
[null,null,null,"",null,null,"",null,null,0,0,0]
[null,null,null,"",null,null,"",null,null,0,0,0]
[null,null,null,"",null,null,"",null,null,0,0,0]
[null,null,null,"",null,null,"",null,null,0,0,0]
[null,null,null,"",null,null,"",null,null,0,0,0]
[null,null,null,"",null,null,"",null,null,0,0,0]
[null,null,null,"",null,null,"",null,null,0,0,0]
[null,null,null,"",null,null,"",null,null,0,0,0]
[null,null,null,"",null,null,"",null,null,0,0,0]
[null,null,null,"",null,null,"",null,null,0,0,0]
[null,null,null,"",null,null,"",null,null,0,0,0]
[null,null,null,"",null,null,"",null,null,0,0,0]
[null,null,null,"",null,null,"",null,null,0,0,0]
[null,null,null,"",null,null,"",null,null,0,0,0]
[null,null,null,"",null,null,"",null,null,0,0,0]
[null,null,null,"",null,null,"",null,null,0,0,0]
[null,null,null,"",null,null,"",null,null,0,0,0]
[null,null,null,"",null,null,"",null,null,0,0,0]
[null,null,null,"",null,null,"",null,null,0,0,0]
[null,null,null,"",null,null,"",null,null,0,0,0]
[null,null,null,"",null,null,"",null,null,0,0,0]
[null,null,null,"",null,null,"",null,null,0,0,0]
[null,null,null,"",null,null,"",null,null,0,0,0]
[null,null,null,"",null,null,"",null,null,0,0,0]
[null,null,null,"",null,null,"",null,null,0,0,0]
[null,null,null,"",null,null,"",null,null,0,0,0]
[null,null,null,"",null,null,"",null,null,0,0,0]
[null,null,null,"",null,null,"",null,null,0,0,0]
[null,null,null,"",null,null,"",null,null,0,0,0]
[null,null,null,"",null,null,"",null,null,0,0,0]
[null,null,null,"",null,null,"",null,null,0,0,0]
[null,null,null,"",null,null,"",null,null,0,0,0]
[null,null,null,"",null,null,"",null,null,0,0,0]
[null,null,null,"",null,null,"",null,null,0,0,0]
[null,null,null,"",null,null,"",null,null,0,0,0]
[null,null,null,"",null,null,"",null,null,0,0,0]
[null,null,null,"",null,null,"",null,null,0,0,0]
[null,null,null,"",null,null,"",null,null,0,0,0]
[null,null,null,"",null,null,"",null,null,0,0,0]
[null,null,null,"",null,null,"",null,null,0,0,0]
[null,null,null,"",null,null,"",null,null,0,0,0]
[null,null,null,"",null,null,"",null,null,0,0,0]
[null,null,null,"",null,null,"",null,null,0,0,0]
[null,null,null,"",null,null,"",null,null,0,0,0]
[null,null,null,"",null,null,"",null,null,0,0,0]
[null,null,null,"",null,null,"",null,null,0,0,0]
[null,null,null,"",null,null,"",null,null,0,0,0]
[null,null,null,"",null,null,"",null,null,0,0,0]
[null,null,null,"",null,null,"",null,null,0,0,0]
[null,null,null,"",null,null,"",null,null,0,0,0]
[null,null,null,"",null,null,"",null,null,0,0,0]
[null,null,null,"",null,null,"",null,null,0,0,0]
[null,null,null,"",null,null,"",null,null,0,0,0]
[null,null,null,"",null,null,"",null,null,0,0,0]
[null,null,null,"",null,null,"",null,null,0,0,0]
[null,null,null,"",null,null,"",null,null,0,0,0]
[null,null,null,"",null,null,"",null,null,0,0,0]
[null,null,null,"",null,null,"",null,null,0,0,0]
[null,null,null,"",null,null,"",null,null,0,0,0]
[null,null,null,"",null,null,"",null,null,0,0,0]
[null,null,null,"",null,null,"",null,null,0,0,0]
[null,null,null,"",null,null,"",null,null,0,0,0]
[null,null,null,{"$f":"IF(C850<B850,\"Check Finish\",\"\")","v":""},null,null,{"$f":"IF(F850<E850,\"Check Finish\",\"\")","v":""},null,null,{"$f":"IF(I850=\"Work\",((F850-E850)*24+(C850-B850)*24),0)","v":0},{"$f":"IF(I850=\"Business\",((F850-E850)*24+(C850-B850)*24),0)","v":0},{"$f":"IF(I850=\"Personal\",((F850-E850)*24+(C850-B850)*24),0)","v":0}]
[null,null,null,"",null,null,"",null,null,0,0,0]
[null,null,null,"",null,null,"",null,null,0,0,0]
[null,null,null,"",null,null,"",null,null,0,0,0]
[null,null,null,"",null,null,"",null,null,0,0,0]
[null,null,null,"",null,null,"",null,null,0,0,0]
[null,null,null,"",null,null,"",null,null,0,0,0]
[null,null,null,"",null,null,"",null,null,0,0,0]
[null,null,null,"",null,null,"",null,null,0,0,0]
[null,null,null,"",null,null,"",null,null,0,0,0]
[null,null,null,"",null,null,"",null,null,0,0,0]
[null,null,null,"",null,null,"",null,null,0,0,0]
[null,null,null,"",null,null,"",null,null,0,0,0]
[null,null,null,"",null,null,"",null,null,0,0,0]
[null,null,null,"",null,null,"",null,null,0,0,0]
[null,null,null,"",null,null,"",null,null,0,0,0]
[null,null,null,"",null,null,"",null,null,0,0,0]
[null,null,null,"",null,null,"",null,null,0,0,0]
[null,null,null,"",null,null,"",null,null,0,0,0]
[null,null,null,"",null,null,"",null,null,0,0,0]
[null,null,null,"",null,null,"",null,null,0,0,0]
[null,null,null,"",null,null,"",null,null,0,0,0]
[null,null,null,"",null,null,"",null,null,0,0,0]
[null,null,null,"",null,null,"",null,null,0,0,0]
[null,null,null,"",null,null,"",null,null,0,0,0]
[null,null,null,"",null,null,"",null,null,0,0,0]
[null,null,null,"",null,null,"",null,null,0,0,0]
[null,null,null,"",null,null,"",null,null,0,0,0]
[null,null,null,"",null,null,"",null,null,0,0,0]
[null,null,null,"",null,null,"",null,null,0,0,0]
[null,null,null,"",null,null,"",null,null,0,0,0]
[null,null,null,"",null,null,"",null,null,0,0,0]
[null,null,null,"",null,null,"",null,null,0,0,0]
[null,null,null,"",null,null,"",null,null,0,0,0]
[null,null,null,"",null,null,"",null,null,0,0,0]
[null,null,null,"",null,null,"",null,null,0,0,0]
[null,null,null,"",null,null,"",null,null,0,0,0]
[null,null,null,"",null,null,"",null,null,0,0,0]
[null,null,null,"",null,null,"",null,null,0,0,0]
[null,null,null,"",null,null,"",null,null,0,0,0]
[null,null,null,"",null,null,"",null,null,0,0,0]
[null,null,null,"",null,null,"",null,null,0,0,0]
[null,null,null,"",null,null,"",null,null,0,0,0]
[null,null,null,"",null,null,"",null,null,0,0,0]
[null,null,null,"",null,null,"",null,null,0,0,0]
[null,null,null,"",null,null,"",null,null,0,0,0]
[null,null,null,"",null,null,"",null,null,0,0,0]
[null,null,null,"",null,null,"",null,null,0,0,0]
[null,null,null,"",null,null,"",null,null,0,0,0]
[null,null,null,"",null,null,"",null,null,0,0,0]
[null,null,null,"",null,null,"",null,null,0,0,0]
[null,null,null,"",null,null,"",null,null,0,0,0]
[null,null,null,"",null,null,"",null,null,0,0,0]
[null,null,null,"",null,null,"",null,null,0,0,0]
[null,null,null,"",null,null,"",null,null,0,0,0]
[null,null,null,"",null,null,"",null,null,0,0,0]
[null,null,null,"",null,null,"",null,null,0,0,0]
[null,null,null,"",null,null,"",null,null,0,0,0]
[null,null,null,"",null,null,"",null,null,0,0,0]
[null,null,null,"",null,null,"",null,null,0,0,0]
[null,null,null,"",null,null,"",null,null,0,0,0]
[null,null,null,"",null,null,"",null,null,0,0,0]
[null,null,null,"",null,null,"",null,null,0,0,0]
[null,null,null,"",null,null,"",null,null,0,0,0]
[null,null,null,{"$f":"IF(C914<B914,\"Check Finish\",\"\")","v":""},null,null,{"$f":"IF(F914<E914,\"Check Finish\",\"\")","v":""},null,null,{"$f":"IF(I914=\"Work\",((F914-E914)*24+(C914-B914)*24),0)","v":0},{"$f":"IF(I914=\"Business\",((F914-E914)*24+(C914-B914)*24),0)","v":0},{"$f":"IF(I914=\"Personal\",((F914-E914)*24+(C914-B914)*24),0)","v":0}]
[null,null,null,"",null,null,"",null,null,0,0,0]
[null,null,null,"",null,null,"",null,null,0,0,0]
[null,null,null,"",null,null,"",null,null,0,0,0]
[null,null,null,"",null,null,"",null,null,0,0,0]
[null,null,null,"",null,null,"",null,null,0,0,0]
[null,null,null,"",null,null,"",null,null,0,0,0]
[null,null,null,"",null,null,"",null,null,0,0,0]
[null,null,null,"",null,null,"",null,null,0,0,0]
[null,null,null,"",null,null,"",null,null,0,0,0]
[null,null,null,"",null,null,"",null,null,0,0,0]
[null,null,null,"",null,null,"",null,null,0,0,0]
[null,null,null,"",null,null,"",null,null,0,0,0]
[null,null,null,"",null,null,"",null,null,0,0,0]
[null,null,null,"",null,null,"",null,null,0,0,0]
[null,null,null,"",null,null,"",null,null,0,0,0]
[null,null,null,"",null,null,"",null,null,0,0,0]
[null,null,null,"",null,null,"",null,null,0,0,0]
[null,null,null,"",null,null,"",null,null,0,0,0]
[null,null,null,"",null,null,"",null,null,0,0,0]
[null,null,null,"",null,null,"",null,null,0,0,0]
[null,null,null,"",null,null,"",null,null,0,0,0]
[null,null,null,"",null,null,"",null,null,0,0,0]
[null,null,null,"",null,null,"",null,null,0,0,0]
[null,null,null,"",null,null,"",null,null,0,0,0]
[null,null,null,"",null,null,"",null,null,0,0,0]
[null,null,null,"",null,null,"",null,null,0,0,0]
[null,null,null,"",null,null,"",null,null,0,0,0]
[null,null,null,"",null,null,"",null,null,0,0,0]
[null,null,null,"",null,null,"",null,null,0,0,0]
[null,null,null,"",null,null,"",null,null,0,0,0]
[null,null,null,"",null,null,"",null,null,0,0,0]
[null,null,null,"",null,null,"",null,null,0,0,0]
[null,null,null,"",null,null,"",null,null,0,0,0]
[null,null,null,"",null,null,"",null,null,0,0,0]
[null,null,null,"",null,null,"",null,null,0,0,0]
[null,null,null,"",null,null,"",null,null,0,0,0]
[null,null,null,"",null,null,"",null,null,0,0,0]
[null,null,null,"",null,null,"",null,null,0,0,0]
[null,null,null,"",null,null,"",null,null,0,0,0]
[null,null,null,"",null,null,"",null,null,0,0,0]
[null,null,null,"",null,null,"",null,null,0,0,0]
[null,null,null,"",null,null,"",null,null,0,0,0]
[null,null,null,"",null,null,"",null,null,0,0,0]
[null,null,null,"",null,null,"",null,null,0,0,0]
[null,null,null,"",null,null,"",null,null,0,0,0]
[null,null,null,"",null,null,"",null,null,0,0,0]
[null,null,null,"",null,null,"",null,null,0,0,0]
[null,null,null,"",null,null,"",null,null,0,0,0]
[null,null,null,"",null,null,"",null,null,0,0,0]
[null,null,null,"",null,null,"",null,null,0,0,0]
[null,null,null,"",null,null,"",null,null,0,0,0]
[null,null,null,"",null,null,"",null,null,0,0,0]
[null,null,null,"",null,null,"",null,null,0,0,0]
[null,null,null,"",null,null,"",null,null,0,0,0]
[null,null,null,"",null,null,"",null,null,0,0,0]
[null,null,null,"",null,null,"",null,null,0,0,0]
[null,null,null,"",null,null,"",null,null,0,0,0]
[null,null,null,"",null,null,"",null,null,0,0,0]
[null,null,null,"",null,null,"",null,null,0,0,0]
[null,null,null,"",null,null,"",null,null,0,0,0]
[null,null,null,"",null,null,"",null,null,0,0,0]
[null,null,null,"",null,null,"",null,null,0,0,0]
[null,null,null,"",null,null,"",null,null,0,0,0]
[null,null,null,{"$f":"IF(C978<B978,\"Check Finish\",\"\")","v":""},null,null,{"$f":"IF(F978<E978,\"Check Finish\",\"\")","v":""},null,null,{"$f":"IF(I978=\"Work\",((F978-E978)*24+(C978-B978)*24),0)","v":0},{"$f":"IF(I978=\"Business\",((F978-E978)*24+(C978-B978)*24),0)","v":0},{"$f":"IF(I978=\"Personal\",((F978-E978)*24+(C978-B978)*24),0)","v":0}]
[null,null,null,"",null,null,"",null,null,0,0,0]
[null,null,null,"",null,null,"",null,null,0,0,0]
[null,null,null,"",null,null,"",null,null,0,0,0]
[null,null,null,"",null,null,"",null,null,0,0,0]
[null,null,null,"",null,null,"",null,null,0,0,0]
[null,null,null,"",null,null,"",null,null,0,0,0]
[null,null,null,"",null,null,"",null,null,0,0,0]
[null,null,null,"",null,null,"",null,null,0,0,0]
[null,null,null,"",null,null,"",null,null,0,0,0]
[null,null,null,"",null,null,"",null,null,0,0,0]
[null,null,null,"",null,null,"",null,null,0,0,0]
[null,null,null,"",null,null,"",null,null,0,0,0]
[null,null,null,"",null,null,"",null,null,0,0,0]
[null,null,null,"",null,null,"",null,null,0,0,0]
[null,null,null,"",null,null,"",null,null,0,0,0]
[null,null,null,"",null,null,"",null,null,0,0,0]
[null,null,null,"",null,null,"",null,null,0,0,0]
[null,null,null,"",null,null,"",null,null,0,0,0]
[null,null,null,"",null,null,"",null,null,0,0,0]
[null,null,null,"",null,null,"",null,null,0,0,0]
[null,null,null,"",null,null,"",null,null,0,0,0]
[null,null,null,"",null,null,"",null,null,0,0,0]
[null,null,null,"",null,null,"",null,null,0,0,0]
[null,null,null,"",null,null,"",null,null,0,0,0]
[null,null,null,"",null,null,"",null,null,0,0,0]
[null,null,null,"",null,null,"",null,null,0,0,0]
[null,null,null,"",null,null,"",null,null,0,0,0]
[null,null,null,"",null,null,"",null,null,0,0,0]
[null,null,null,"",null,null,"",null,null,0,0,0]

{"sheet":"List","index":1,"n_rows":3,"n_cols":1,"rows_kept":3,"cut":false,"hidden":true,"merged":[]}
["Work"]
["Personal"]
["Business"]